bitfinex/quotes_SOLUSD_20241115
["timestamp","ask_amount","ask_price","bid_price","bid_amount"]
[1731692322285,20.0,211.28,211.16,0.09367462]
[1731692322490,31.481074,211.29,211.16,0.09367462]
[1731692322491,43.776884,211.26,211.16,0.09367462]
[1731692322985,20.0,211.26,211.17,23.83903542]
[1731692323182,20.0,211.26,211.18,23.83903542]
[1731692323362,20.0,211.26,211.17,23.83903542]
[1731692323877,3.3136,211.25,211.16,4.95476462]
[1731692324187,3.3136,211.25,211.16,0.09367462]
[1731692325300,19.56,211.27,211.2,0.09367462]
[1731692325593,3.3125,211.32,211.25,23.96452542]
[1731692325892,3.3125,211.32,211.23,23.83903542]
[1731692326673,3.3125,211.32,211.26,24.05820004]
[1731692326970,3.3125,211.32,211.27,23.83903542]
[1731692327376,3.3122,211.34,211.27,23.83903542]
[1731692327966,3.3122,211.34,211.27,0.21916462]
[1731692328293,23.3122,211.34,211.27,0.21916462]
[1731692328793,23.3122,211.34,211.23,11.8354]
[1731692328794,23.3122,211.34,211.23,0.12549]
[1731692329168,23.3122,211.34,211.23,23.83903542]
[1731692329886,23.3122,211.34,211.23,0.09367462]
[1731692330275,20.0,211.32,211.21,0.12549]
[1731692330590,20.0,211.32,211.21,0.09367462]
[1731692330794,20.0,211.32,211.21,23.93271004]
[1731692330996,20.0,211.32,211.21,0.09367462]
[1731692331185,20.0,211.32,211.2,35.67613542]
[1731692331393,20.0,211.28,211.18,4.7351]
[1731692331581,20.0,211.28,211.16,28.66821004]
[1731692332093,3.3132,211.27,211.18,23.83903542]
[1731692332296,3.3132,211.27,211.19,23.93271004]
[1731692333101,3.3132,211.27,211.2,0.12549]
[1731692333599,3.3132,211.27,211.18,0.12549]
[1731692333787,3.3132,211.27,211.21,23.83903542]
[1731692334108,3.3132,211.27,211.2,0.12549]
[1731692334675,3.3132,211.27,211.19,0.21916462]
[1731692334875,3.3132,211.27,211.19,24.05820004]
[1731692335293,3.3132,211.27,211.17,23.83903542]
[1731692335596,3.3132,211.27,211.18,23.96452542]
[1731692336301,3.3132,211.27,211.18,0.21916462]
[1731692336480,3.3132,211.27,211.18,24.05820004]
[1731692336679,3.3132,211.27,211.2,23.83903542]
[1731692336881,3.3132,211.27,211.21,23.83903542]
[1731692337197,3.3132,211.27,211.2,23.83903542]
[1731692338094,3.3131,211.28,211.22,23.83903542]
[1731692338500,3.3131,211.28,211.22,0.09367462]
[1731692339301,3.3131,211.28,211.21,0.09367462]
[1731692339501,20.0,211.33,211.23,0.09367462]
[1731692340205,20.0,211.33,211.22,23.83903542]
[1731692340509,20.0,211.33,211.21,23.83903542]
[1731692340903,20.0,211.31,211.22,23.93271004]
[1731692341198,20.0,211.31,211.22,0.09367462]
[1731692341402,3.3128,211.3,211.22,0.09367462]
[1731692341700,3.3126,211.32,211.27,23.83903542]
[1731692342205,3.3123,211.34,211.28,0.09367462]
[1731692343005,3.3123,211.34,211.27,0.09367462]
[1731692343605,23.3123,211.34,211.27,0.09367462]
[1731692344304,20.0,211.34,211.29,23.83903542]
[1731692344502,3.312,211.36,211.3,0.09367462]
[1731692345201,3.312,211.36,211.27,28.57223542]
[1731692345387,3.3114,211.39,211.28,28.57193542]
[1731692345710,23.3114,211.39,211.29,0.09367462]
[1731692347405,20.0,211.35,211.24,23.83903542]
[1731692347588,20.0,211.35,211.25,23.83903542]
[1731692347789,20.0,211.35,211.27,23.83903542]
[1731692347983,23.776884,211.37,211.27,0.09367462]
[1731692348192,20.0,211.36,211.27,0.09367462]
[1731692348418,3.312,211.35,211.27,0.09367462]
[1731692350198,3.312,211.35,211.24,4.85929]
[1731692350492,3.312,211.35,211.21,14.78308799]
[1731692350818,20.0,211.33,211.2,4.7346]
[1731692351688,3.3125,211.32,211.2,19.51768799]
[1731692352020,3.3125,211.32,211.22,15.00225261]
[1731692352190,8.2786,211.39,211.26,15.00225261]
[1731692352390,3.3115,211.38,211.28,0.34465462]
[1731692352898,3.3115,211.38,211.26,14.78308799]
[1731692353109,3.3115,211.38,211.26,0.25098]
[1731692353489,3.3115,211.38,211.27,0.09367462]
[1731692353791,23.3115,211.38,211.27,0.09367462]
[1731692354708,23.3115,211.38,211.27,4.82687462]
[1731692355003,23.3115,211.38,211.27,0.09367462]
[1731692355601,31.5904,211.38,211.27,0.09367462]
[1731692356481,20.0,211.36,211.24,16.5681]
[1731692356682,3.312,211.35,211.24,16.5681]
[1731692356882,20.0,211.34,211.24,11.8344]
[1731692358006,3.3123,211.33,211.21,4.7346]
[1731692358212,3.3123,211.33,211.21,4.82827462]
[1731692358397,3.3123,211.33,211.21,16.66477462]
[1731692358786,3.3123,211.33,211.23,0.09367462]
[1731692359709,39.659,211.32,211.21,11.8365]
[1731692359910,39.659,211.32,211.21,16.5711]
[1731692360099,39.659,211.32,211.22,0.09367462]
[1731692361504,20.0,211.29,211.17,11.8386]
[1731692361889,27.7383,211.29,211.18,0.09367462]
[1731692362404,27.7383,211.29,211.18,23.74685117]
[1731692362607,3.3131,211.28,211.19,4.735]
[1731692363406,23.776884,211.27,211.16,0.09367462]
[1731692363612,20.0,211.26,211.16,0.09367462]
[1731692363810,20.0,211.26,211.16,40.32175117]
[1731692363999,23.3131,211.28,211.18,23.65317655]
[1731692364201,23.3131,211.28,211.18,0.09367462]
[1731692364812,23.3131,211.28,211.18,4.82877462]
[1731692365496,23.3131,211.28,211.18,16.66697462]
[1731692365696,23.3131,211.28,211.2,0.09367462]
[1731692366007,3.3126,211.31,211.22,0.09367462]
[1731692367113,23.3126,211.31,211.22,0.09367462]
[1731692367499,23.3126,211.31,211.2,0.34465462]
[1731692368011,20.0,211.29,211.16,0.09367462]
[1731692368225,20.0,211.29,211.16,0.34465462]
[1731692368400,23.776884,211.28,211.16,0.21916462]
[1731692368596,20.0,211.27,211.16,4.82927462]
[1731692369199,3.3134,211.26,211.16,4.82927462]
[1731692369401,3.3134,211.26,211.16,28.48245117]
[1731692369713,3.3134,211.26,211.16,40.32175117]
[1731692369917,3.3134,211.26,211.18,0.09367462]
[1731692370420,3.3134,211.26,211.16,16.66857462]
[1731692370591,23.776884,211.28,211.16,16.66857462]
[1731692370795,20.0,211.27,211.16,16.66857462]
[1731692371817,3.3134,211.26,211.16,40.32175117]
[1731692372041,3.3132,211.28,211.18,23.74685117]
[1731692372314,3.3132,211.28,211.2,0.09367462]
[1731692373421,20.0,211.31,211.2,0.09367462]
[1731692373602,3.3128,211.3,211.2,4.82837462]
[1731692375217,3.3128,211.3,211.18,4.7351]
[1731692375626,23.776884,211.27,211.16,16.66857462]
[1731692376623,23.3134,211.26,211.16,11.93297462]
[1731692376820,7.3636,211.25,211.16,11.93297462]
[1731692377118,20.0,211.22,211.16,0.09367462]
[1731692377528,23.776884,211.21,211.16,0.09367462]
[1731692377710,20.0,211.2,211.16,0.09367462]
[1731692378210,17.9828,211.23,211.16,0.09367462]
[1731692378211,43.776884,211.22,211.16,0.09367462]
[1731692378610,3.3142,211.21,211.16,0.09367462]
[1731692379544,23.776884,211.18,211.16,0.09367462]
[1731692379727,20.0,211.17,211.16,0.09367462]
[1731692380620,17.9828,211.23,211.16,0.09367462]
[1731692380811,20.0,211.2,211.16,0.09367462]
[1731692382310,3.314,211.22,211.16,0.09367462]
[1731692382624,17.9828,211.23,211.16,0.09367462]
[1731692382799,21.2968,211.23,211.16,4.82927462]
[1731692383222,17.9828,211.23,211.16,31.47028433]
[1731692383527,21.2967,211.23,211.16,16.66857462]
[1731692384119,21.2967,211.23,211.16,31.47028433]
[1731692384918,3.3139,211.23,211.17,19.53720971]
[1731692385121,3.3134,211.27,211.18,14.89538433]
[1731692385326,3.3134,211.27,211.2,0.09367462]
[1731692385511,3.3134,211.27,211.18,14.80170971]
[1731692386007,16.5599,211.36,211.23,14.80170971]
[1731692386008,3.3131,211.29,211.23,14.80170971]
[1731692386213,3.3127,211.31,211.23,14.80170971]
[1731692386423,3.3127,211.31,211.23,0.09367462]
[1731692387131,3.3127,211.31,211.2,31.37290971]
[1731692388331,3.3127,211.31,211.21,14.89538433]
[1731692388833,3.3127,211.31,211.22,14.80170971]
[1731692389034,3.3127,211.31,211.22,19.53610971]
[1731692389421,3.3127,211.31,211.22,4.7344]
[1731692389625,3.3127,211.31,211.21,0.09367462]
[1731692390124,3.3127,211.31,211.21,14.89538433]
[1731692390815,3.3127,211.31,211.21,19.62978433]
[1731692391138,3.3127,211.31,211.21,4.82807462]
[1731692391743,3.3127,211.31,211.22,14.80170971]
[1731692392042,3.3106,211.44,211.31,24.12153862]
[1731692392211,3.3106,211.44,211.37,14.80170971]
[1731692392628,3.3106,211.44,211.37,0.09367462]
[1731692393038,3.3106,211.44,211.36,14.80170971]
[1731692393216,3.3106,211.44,211.35,14.89538433]
[1731692393731,3.3106,211.44,211.34,26.63070971]
[1731692394131,3.3106,211.44,211.36,0.09367462]
[1731692395334,3.3106,211.44,211.35,0.09367462]
[1731692395511,3.3106,211.44,211.35,4.82507462]
[1731692396728,3.3106,211.44,211.35,0.09367462]
[1731692396930,3.3106,211.44,211.34,16.5607]
[1731692398034,3.3106,211.44,211.32,19.53360971]
[1731692398235,20.0,211.42,211.29,14.80170971]
[1731692398442,23.776884,211.39,211.26,18.924317]
[1731692398730,0.12549,211.35,211.23,25.4116]
[1731692398933,20.0,211.32,211.2,19.53630971]
[1731692399135,20.0,211.32,211.2,16.5717]
[1731692399331,20.0,211.32,211.2,31.37340971]
[1731692399634,20.0,211.3,211.19,14.80170971]
[1731692399819,20.0,211.3,211.2,14.80170971]
[1731692401135,3.3117,211.37,211.27,14.89538433]
[1731692401333,3.3117,211.37,211.29,14.80170971]
[1731692401531,3.3117,211.37,211.28,14.80170971]
[1731692401729,3.3117,211.37,211.25,14.80170971]
[1731692401932,3.3117,211.37,211.21,40.598964]
[1731692401933,11.691,211.37,211.21,31.37280971]
[1731692402118,0.09367462,211.36,211.18,45.45810971]
[1731692402317,24.12153862,211.36,211.2,0.09367462]
[1731692402543,0.12549,211.32,211.18,45.45810971]
[1731692402843,23.776884,211.3,211.2,14.89538433]
[1731692403132,11.591,211.37,211.26,0.09367462]
[1731692403338,3.3117,211.37,211.29,14.80170971]
[1731692403516,3.3117,211.37,211.25,0.09367462]
[1731692403717,3.3117,211.37,211.22,14.80170971]
[1731692404639,24.027864,211.36,211.23,0.09367462]
[1731692404827,0.4639995,211.45,211.32,14.80170971]
[1731692405144,0.4639995,211.45,211.34,14.80170971]
[1731692405320,7.3215,211.43,211.25,0.12549]
[1731692405519,7.3215,211.43,211.28,14.80170971]
[1731692406040,20.0,211.42,211.28,14.80170971]
[1731692406352,44.027864,211.39,211.25,14.80170971]
[1731692406527,44.027864,211.39,211.26,14.80170971]
[1731692406729,43.776884,211.39,211.29,14.80170971]
[1731692407123,0.4639995,211.45,211.38,14.80170971]
[1731692407426,0.4639995,211.45,211.33,0.25098]
[1731692407427,0.4639995,211.45,211.42,14.80170971]
[1731692407624,0.4639995,211.45,211.33,0.25098]
[1731692407625,0.4639995,211.45,211.41,14.80170971]
[1731692407837,0.4639995,211.45,211.4,14.80170971]
[1731692408037,0.4639995,211.45,211.35,14.80170971]
[1731692408237,0.4639995,211.45,211.38,14.80170971]
[1731692408745,0.4639995,211.45,211.39,14.80170971]
[1731692408945,0.4639995,211.45,211.44,14.80170971]
[1731692410925,0.4639995,211.45,211.44,23.61317982]
[1731692412347,0.4639995,211.45,211.4,23.61317982]
[1731692412646,0.4639995,211.45,211.37,16.558]
[1731692412647,0.4639995,211.45,211.44,23.61317982]
[1731692413555,0.4639995,211.45,211.43,23.61317982]
[1731692414049,0.4639995,211.45,211.44,23.61317982]
[1731692414236,0.4639995,211.45,211.42,23.61317982]
[1731692414550,0.4639995,211.45,211.44,23.61317982]
[1731692415044,0.4639995,211.45,211.38,11.827]
[1731692415227,0.4639995,211.45,211.44,23.61317982]
[1731692415428,0.4639995,211.45,211.42,23.61317982]
[1731692415642,0.4639995,211.45,211.38,23.61317982]
[1731692415851,0.4639995,211.45,211.37,28.34407982]
[1731692416046,20.4639995,211.45,211.37,28.34407982]
[1731692417738,20.4639995,211.45,211.37,23.61317982]
[1731692418565,23.7744995,211.45,211.36,23.61317982]
[1731692418741,23.7744995,211.45,211.34,16.5604]
[1731692418742,20.0,211.41,211.34,16.5604]
[1731692418939,23.776884,211.4,211.34,16.5604]
[1731692420946,23.776884,211.4,211.34,11.8287]
[1731692421451,23.776884,211.4,211.34,16.5604]
[1731692421748,20.0,211.41,211.35,23.61317982]
[1731692422066,20.4639995,211.45,211.37,23.61317982]
[1731692422232,20.4639995,211.45,211.35,23.61317982]
[1731692422635,0.12549,211.44,211.34,40.17357982]
[1731692423050,3.3107,211.43,211.34,16.5604]
[1731692423230,23.776884,211.42,211.34,16.5604]
[1731692423733,20.0,211.41,211.34,16.5604]
[1731692424052,20.0,211.41,211.34,40.17357982]
[1731692424451,23.776884,211.43,211.34,40.17357982]
[1731692424753,20.0,211.42,211.35,23.61317982]
[1731692425059,20.0,211.42,211.38,23.61317982]
[1731692425236,0.4639995,211.45,211.39,23.61317982]
[1731692426359,0.4639995,211.45,211.4,28.34347982]
[1731692426650,0.4639995,211.45,211.41,23.61317982]
[1731692426855,0.4639995,211.45,211.42,23.61317982]
[1731692428056,0.4639995,211.45,211.42,28.34287982]
[1731692428354,0.4639995,211.45,211.42,4.7297]
[1731692429337,0.4639995,211.45,211.4,23.61317982]
[1731692429544,0.4639995,211.45,211.4,28.34347982]
[1731692429756,0.4639995,211.45,211.42,23.61317982]
[1731692430356,0.4639995,211.45,211.44,23.61317982]
[1731692431654,0.4639995,211.45,211.44,28.34257982]
[1731692432461,0.4639995,211.45,211.42,28.34297982]
[1731692432857,0.4639995,211.45,211.43,14.76212247]
[1731692433463,0.4639995,211.45,211.44,14.76212247]
[1731692433767,0.4639995,211.45,211.44,19.49152247]
[1731692435659,0.4639995,211.45,211.44,4.7294]
[1731692436041,41.1,211.58,211.44,74.8974704]
[1731692436246,18.4613,211.63,211.57,14.76212247]
[1731692436542,0.4639995,211.66,211.6,14.76212247]
[1731692436854,0.4639995,211.66,211.59,14.76212247]
[1731692437443,0.4639995,211.66,211.63,14.76212247]
[1731692437656,0.4639995,211.66,211.65,14.76212247]
[1731692438375,0.4639995,211.66,211.63,26.57512247]
[1731692438966,0.4639995,211.66,211.63,31.30032247]
[1731692439167,0.4639995,211.66,211.6,14.76212247]
[1731692439467,0.4639995,211.66,211.59,14.76212247]
[1731692439663,0.4639995,211.66,211.6,14.76212247]
[1731692439862,0.12549,211.65,211.58,11.8154]
[1731692440062,23.902374,211.63,211.55,19.48902247]
[1731692440264,23.902374,211.61,211.54,0.09367462]
[1731692440584,23.776884,211.59,211.54,14.85579709]
[1731692440865,0.4639995,211.66,211.58,14.76212247]
[1731692441045,0.4639995,211.66,211.65,14.76212247]
[1731692441768,0.4639995,211.66,211.65,19.48682247]
[1731692441980,7.37429561,211.8,211.65,19.61231247]
[1731692442155,7.37429561,211.8,211.74,14.76212247]
[1731692442476,7.37429561,211.8,211.75,14.76212247]
[1731692443073,7.3104,211.83,211.74,14.76212247]
[1731692443266,7.3104,211.83,211.66,0.12549]
[1731692443267,7.3104,211.83,211.75,14.76212247]
[1731692443473,7.99923444,211.87,211.82,14.76212247]
[1731692443474,0.4639995,211.87,211.82,14.76212247]
[1731692443773,0.4639995,211.87,211.86,14.76212247]
[1731692443964,0.4639995,211.87,211.86,19.48212247]
[1731692444759,0.4639995,211.87,211.86,28.23601154]
[1731692448678,0.4639995,211.87,211.86,51.75202308]
[1731692449375,0.4639995,211.87,211.86,28.23601154]
[1731692449579,0.4639995,211.87,211.86,51.75202308]
[1731692453490,0.1,212.08,211.86,51.75202308]
[1731692453491,7.403,212.13,212.01,23.51601154]
[1731692453663,7.303,212.13,212.04,23.51601154]
[1731692453861,7.303,212.13,212.03,23.51601154]
[1731692454270,0.1,212.12,212.02,23.51601154]
[1731692454471,0.1,212.12,212.0,23.51601154]
[1731692454677,0.1,212.12,212.02,23.51601154]
[1731692454877,0.1,212.1,211.98,23.51601154]
[1731692455069,0.2,212.1,211.96,23.51601154]
[1731692455269,0.19367462,212.08,211.94,23.51601154]
[1731692455481,0.19367462,212.08,211.95,23.51601154]
[1731692455690,0.19367462,212.08,211.96,23.51601154]
[1731692456184,23.902374,212.04,211.98,23.51601154]
[1731692456396,0.4639995,212.09,212.01,23.51601154]
[1731692456677,0.4639995,212.09,212.05,23.51601154]
[1731692458062,0.4639995,212.09,212.06,23.51601154]
[1731692458266,0.4639995,212.09,212.05,23.51601154]
[1731692458888,0.4639995,212.09,212.06,23.51601154]
[1731692459091,0.4639995,212.09,212.08,23.51601154]
[1731692460295,0.4639995,212.09,212.08,28.23121154]
[1731692461184,0.4639995,212.09,212.08,51.74722308]
[1731692462592,0.1,212.23,212.08,51.74722308]
[1731692462766,0.1,212.23,212.17,23.51601154]
[1731692463289,0.1,212.22,212.14,23.51601154]
[1731692463474,0.1,212.22,212.13,23.51601154]
[1731692463674,0.1,212.22,212.15,23.51601154]
[1731692463871,0.25098,212.21,212.15,23.51601154]
[1731692464180,0.25098,212.21,212.16,23.51601154]
[1731692464379,0.25098,212.21,212.15,23.51601154]
[1731692464787,0.25098,212.21,212.17,23.51601154]
[1731692464984,0.25098,212.21,212.19,23.51601154]
[1731692465173,0.12549,212.22,212.17,23.51601154]
[1731692465495,7.43629636,212.24,212.18,23.51601154]
[1731692465674,76.2359,212.25,212.18,23.51601154]
[1731692465878,76.3359,212.25,212.18,23.51601154]
[1731692466082,76.4359,212.25,212.18,23.51601154]
[1731692466266,0.09367462,212.24,212.17,23.51601154]
[1731692466475,0.1,212.21,212.13,35.30121154]
[1731692466667,20.34465462,212.2,212.13,11.7852]
[1731692466976,23.776884,212.17,212.13,11.7852]
[1731692467394,0.12549,212.16,212.14,23.51601154]
[1731692468397,0.12549,212.16,212.13,35.30121154]
[1731692469287,0.12549,212.16,212.11,23.51601154]
[1731692469610,0.12549,212.14,212.09,40.01831154]
[1731692469793,0.12549,212.14,212.09,35.30341154]
[1731692470791,0.25098,212.14,212.09,35.30341154]
[1731692471094,0.25098,212.14,212.09,11.7874]
[1731692471970,0.25098,212.14,212.08,23.51601154]
[1731692472177,23.776884,212.15,212.11,23.51601154]
[1731692472474,23.776884,212.15,212.09,23.51601154]
[1731692472999,23.776884,212.15,212.1,14.67021838]
[1731692473491,0.25098,212.14,212.1,4.7145]
[1731692473800,20.25098,212.12,212.04,14.67021838]
[1731692474096,20.12549,212.14,211.99,28.3032]
[1731692474097,20.25098,212.06,211.99,16.5102]
[1731692474395,0.12549,212.04,211.99,31.18041838]
[1731692474792,20.12549,212.02,211.96,4.7177]
[1731692474995,23.776884,212.01,211.95,4.7178]
[1731692475295,0.12549,211.98,211.94,11.7953]
[1731692475591,0.12549,211.96,211.91,4.7189]
[1731692476181,23.776884,211.97,211.91,31.18651838]
[1731692476393,23.776884,211.97,211.92,14.67021838]
[1731692476601,23.776884,211.97,211.91,31.18651838]
[1731692476780,23.776884,211.97,211.91,16.5163]
[1731692476983,23.776884,211.97,211.91,40.03116904]
[1731692477183,23.776884,211.97,211.92,23.51486904]
[1731692477400,7.8502,212.08,211.96,23.51486904]
[1731692477705,7.8502,212.08,212.01,23.51486904]
[1731692477885,7.8502,212.08,212.0,23.51486904]
[1731692478200,7.8502,212.08,211.99,23.51486904]
[1731692478802,44.027864,212.07,212.0,4.7169]
[1731692479899,44.027864,212.07,211.98,23.51486904]
[1731692480397,44.027864,212.07,211.99,23.51486904]
[1731692480598,44.027864,212.07,211.97,23.51486904]
[1731692480904,44.027864,212.07,211.98,23.51486904]
[1731692481288,0.21916462,212.06,211.95,23.51486904]
[1731692481492,0.25098,212.05,211.96,23.51486904]
[1731692481687,20.25098,212.05,211.97,23.51486904]
[1731692482004,0.12549,212.03,211.97,4.7176]
[1731692482303,0.12549,212.03,211.97,40.02656904]
[1731692482602,0.12549,212.03,211.97,39.52656904]
[1731692482903,0.12549,212.03,211.97,16.0117]
[1731692483103,23.776884,212.04,211.97,39.52656904]
[1731692483401,23.776884,212.04,211.98,23.51486904]
[1731692484400,23.776884,212.04,211.99,4.7172]
[1731692484904,0.12549,212.03,211.97,16.5115]
[1731692485277,20.25098,212.03,211.93,23.51486904]
[1731692485478,0.1,212.12,211.92,40.1089]
[1731692485680,11.1139,212.13,212.05,23.51486904]
[1731692486096,11.1139,212.13,212.04,23.51486904]
[1731692486301,11.2139,212.13,212.01,23.51486904]
[1731692486501,0.09367462,212.12,212.01,23.51486904]
[1731692486801,11.1139,212.13,212.02,23.51486904]
[1731692487006,11.1139,212.13,212.05,23.51486904]
[1731692487007,0.12549,212.12,212.05,23.51486904]
[1731692487911,0.12549,212.12,212.04,23.51486904]
[1731692488406,44.027864,212.12,212.04,16.5062]
[1731692488711,47.327864,212.12,212.04,11.7902]
[1731692489297,47.327864,212.12,212.04,16.5062]
[1731692491803,47.327864,212.12,212.04,11.7902]
[1731692492011,0.25098,212.1,212.01,28.23146904]
[1731692492594,23.776884,212.09,212.01,16.5084]
[1731692492893,23.776884,212.07,212.01,16.5084]
[1731692493091,23.776884,212.07,212.01,11.7918]
[1731692493312,23.776884,212.07,212.02,23.51486904]
[1731692493611,23.776884,212.07,212.01,40.02336904]
[1731692494113,23.776884,212.07,211.92,42.0453]
[1731692494288,0.09367462,212.05,211.94,16.514]
[1731692494610,0.12549,212.02,211.94,16.514]
[1731692495407,0.12549,212.02,211.94,40.02886904]
[1731692495592,0.12549,212.02,211.94,16.514]
[1731692495995,0.12549,212.0,211.94,16.514]
[1731692497711,0.12549,212.0,211.94,11.7957]
[1731692497917,3.42749,212.0,211.94,11.7957]
[1731692498113,0.12549,211.98,211.94,11.7957]
[1731692499312,0.12549,211.98,211.91,23.51486904]
[1731692499511,20.25098,211.96,211.87,4.7198]
[1731692499713,0.25098,211.94,211.87,4.7198]
[1731692500015,0.25098,211.94,211.87,28.23466904]
[1731692500208,0.25098,211.94,211.87,4.7198]
[1731692500917,0.25098,211.92,211.83,40.03746904]
[1731692501220,0.12549,211.9,211.83,16.5226]
[1731692501916,0.12549,211.88,211.83,11.8019]
[1731692502619,20.25098,211.86,211.79,4.7215]
[1731692502920,0.12549,211.84,211.79,4.7215]
[1731692504718,7.47079511,211.94,211.83,23.51486904]
[1731692504899,10.5792,211.95,211.88,23.51486904]
[1731692505414,3.3024,211.97,211.79,40.1338]
[1731692505612,0.09367462,211.96,211.79,40.1338]
[1731692505815,0.09367462,211.96,211.87,23.51486904]
[1731692506005,24.22153862,211.96,211.84,23.51486904]
[1731692506202,24.027864,211.92,211.84,23.51486904]
[1731692506718,24.027864,211.92,211.85,23.51486904]
[1731692506899,24.027864,211.92,211.87,23.51486904]
[1731692506900,0.12549,211.92,211.87,23.51486904]
[1731692507104,0.12549,211.93,211.87,23.51486904]
[1731692507323,0.12549,211.94,211.87,23.51486904]
[1731692507918,0.12549,211.94,211.86,23.51486904]
[1731692508524,23.902374,211.94,211.86,23.51486904]
[1731692509624,23.902374,211.94,211.87,4.7198]
[1731692510120,23.902374,211.94,211.87,28.23466904]
[1731692510307,23.902374,211.94,211.87,40.03426904]
[1731692511826,23.902374,211.94,211.89,23.51486904]
[1731692512116,23.902374,211.94,211.8,23.6071]
[1731692512117,23.776884,211.94,211.9,23.51486904]
[1731692512921,0.12549,211.95,211.9,23.51486904]
[1731692513226,23.776884,211.94,211.88,23.51486904]
[1731692513525,23.902374,211.95,211.89,23.51486904]
[1731692514308,0.12549,211.94,211.86,35.31456904]
[1731692514504,0.12549,211.94,211.87,23.51486904]
[1731692514707,0.12549,211.94,211.88,23.51486904]
[1731692515217,23.902374,211.95,211.88,23.51486904]
[1731692515526,0.12549,211.95,211.89,23.51486904]
[1731692515718,0.12549,211.95,211.88,40.03346904]
[1731692516125,0.12549,211.95,211.89,23.51486904]
[1731692516827,0.12549,211.95,211.89,14.69818376]
[1731692517923,0.12549,211.95,211.88,14.69818376]
[1731692518124,0.25098,211.93,211.83,16.5226]
[1731692518317,0.25098,211.91,211.83,16.5226]
[1731692518704,0.25098,211.89,211.8,4.7212]
[1731692519226,23.776884,211.88,211.8,4.7212]
[1731692519424,0.12549,211.87,211.8,4.7212]
[1731692519724,0.25098,211.87,211.79,11.8039]
[1731692519922,0.12549,211.85,211.79,11.8039]
[1731692521015,23.776884,211.86,211.79,35.34735724]
[1731692521217,0.12549,211.87,211.81,23.54345724]
[1731692521417,23.776884,211.88,211.83,23.54345724]
[1731692521908,3.303,211.93,211.83,23.54345724]
[1731692522107,19.6294,211.98,211.85,23.54345724]
[1731692522306,8.2562,211.97,211.86,23.54345724]
[1731692522632,3.3025,211.96,211.87,23.54345724]
[1731692523129,30.30626192,211.98,211.89,23.54345724]
[1731692523309,22.9316,211.98,211.89,23.54345724]
[1731692523625,3.3019,212.0,211.92,23.54345724]
[1731692523813,19.3552,212.03,211.93,23.54345724]
[1731692524014,19.3552,212.03,211.96,23.54345724]
[1731692524219,7.6187,212.05,211.98,23.54345724]
[1731692524428,10.9198,212.05,211.97,23.54345724]
[1731692525237,3.3011,212.05,211.97,28.26085724]
[1731692525431,23.902374,212.04,211.97,28.26085724]
[1731692525934,23.902374,212.04,211.97,40.05495724]
[1731692526128,23.776884,212.04,211.98,23.54345724]
[1731692526334,7.2221,212.1,212.01,23.54345724]
[1731692526630,3.3002,212.11,212.03,23.54345724]
[1731692527007,3.2999,212.13,212.0,23.54345724]
[1731692527414,3.2999,212.13,212.01,4.7167]
[1731692527614,3.2999,212.13,212.01,16.5085]
[1731692528228,24.027864,212.12,212.01,16.5085]
[1731692528429,23.902374,212.1,212.01,16.5085]
[1731692528731,24.027864,212.1,212.01,16.5085]
[1731692529913,27.328264,212.1,212.01,11.7918]
[1731692530236,23.902374,212.08,212.01,11.7918]
[1731692530931,20.0,212.09,212.01,11.7918]
[1731692531113,0.25098,212.11,212.01,35.33525724]
[1731692532535,0.12549,212.09,212.01,40.05195724]
[1731692532718,23.776884,212.12,212.03,23.54345724]
[1731692532912,0.12549,212.11,212.03,23.54345724]
[1731692533416,0.12549,212.11,212.02,23.54345724]
[1731692533622,0.12549,212.11,212.01,16.5085]
[1731692533939,0.12549,212.09,212.01,16.5085]
[1731692534321,23.776884,212.1,212.02,23.54345724]
[1731692534934,0.12549,212.11,212.02,23.54345724]
[1731692535322,0.25098,212.11,212.01,16.5085]
[1731692535521,20.25098,212.11,212.01,16.5085]
[1731692535731,23.776884,212.1,212.02,23.54345724]
[1731692535930,23.776884,212.1,212.05,23.54345724]
[1731692536138,23.776884,212.12,212.05,23.54345724]
[1731692536637,23.776884,212.12,212.02,23.54345724]